[Event "Bruges Masters 2019"]
[Site "Bruges"]
[Date "2019.08.15"]
[Round "9.4"]
[White "Pel, Bonno"]
[Black "Du, Chunhui"]
[Result "1/2-1/2"]
[ECO "A00"]
[WhiteElo "2255"]
[BlackElo "2137"]
[Annotator "ChessBase"]
[PlyCount "40"]
[EventDate "2019.08.11"]
[EventType "swiss"]
[EventCountry "BEL"]
[SourceTitle "playchess.com"]
[Source "ChessBase"]
[SourceQuality "1"]
[TimeControl "5400+30"]

1. g3 {[%emt 0:00:00]} Nf6 {[%emt 0:01:43]} 2. Bg2 {[%emt 0:00:00]} c6 {[%emt 0:04:22]} 3. e4 {[%emt 0:06:05]} e5 {[%emt 0:01:28]} 4. d3 {[%emt 0:01:27]} d5 {[%emt 0:01:18]} 5. Nc3 {[%emt 0:08:16]} dxe4 {[%emt 0:05:15]} 6. dxe4 {[%emt 0:04:15]} Bb4 {[%emt 0:01:33]} 7. Qxd8+ {[%emt 0:02:57]} Kxd8 {[%emt 0:00:07]} 8. Bd2 {[%emt 0:00:05]} Bd6 {[%emt 0:00:23]} 9. O-O-O {[%emt 0:03:11]} Kc7 {[%emt 0:00:12]} 10. f4 {[%emt 0:02:03]} Nfd7 {[%emt 0:00:41]} 11. Nf3 {[%emt 0:01:04]} f6 {[%emt 0:00:03]} 12. Be3 {[%emt 0:02:30]} Nb6 {[%emt 0:03:16]} 13. b3 {[%emt 0:07:03]} Bg4 {[%emt 0:00:36]} 14. h3 {[%emt 0:01:07]} Bxf3 {[%emt 0:00:19]} 15. Bxf3 {[%emt 0:00:10]} N8d7 {[%emt 0:00:22]} 16. Rd2 {[%emt 0:06:54]} Bc5 {[%emt 0:01:49]} 17. Nd1 {[%emt 0:01:58]} a5 {[%emt 0:00:57]} 18. c3 {[%emt 0:03:36]} Rhe8 {[%emt 0:01:29]} 19. f5 {[%emt 0:05:52]} Rad8 {[%emt 0:02:15]} 20. Re1 {[%emt 0:02:31]} a4 {[%emt 1:11:52]} 1/2-1/2

[Event "Bruges Masters 2019"]
[Site "Bruges"]
[Date "2019.08.15"]
[Round "9.6"]
[White "Quesada Vera, Liordis"]
[Black "De Waele, Warre"]
[Result "1-0"]
[ECO "D02"]
[WhiteElo "2386"]
[BlackElo "2225"]
[Annotator "ChessBase"]
[PlyCount "81"]
[EventDate "2019.08.11"]
[EventType "swiss"]
[EventCountry "BEL"]
[SourceTitle "playchess.com"]
[Source "ChessBase"]
[SourceQuality "1"]
[TimeControl "5400+30"]

1. d4 {[%emt 0:03:43]} Nf6 {[%emt 0:00:00]} 2. Nf3 {[%emt 0:00:08]} d5 {[%emt 0:00:00]} 3. g3 {[%emt 0:00:06]} c5 {[%emt 0:01:03]} 4. Bg2 {[%emt 0:00:11]} cxd4 {[%emt 0:00:14]} 5. O-O {[%emt 0:00:08]} e6 {[%emt 0:00:39]} 6. b3 {[%emt 0:00:21]} Bd6 {[%emt 0:12:51]} 7. Nxd4 {[%emt 0:01:20]} O-O {[%emt 0:00:31]} 8. Bb2 {[%emt 0:03:25]} a6 {[%emt 0:00:56]} 9. c4 {[%emt 0:06:59]} dxc4 {[%emt 0:07:05]} 10. bxc4 {[%emt 0:01:37]} Qc7 {[%emt 0:02:50]} 11. Nb3 {[%emt 0:08:58]} Be7 {[%emt 0:06:18]} 12. N1d2 {[%emt 0:32:47]} Nc6 {[%emt 0:16:08]} 13. c5 {[%emt 0:08:41]} Rd8 {[%emt 0:00:57]} 14. Qc1 {[%emt 0:01:13]} Bd7 {[%emt 0:05:52]} 15. Nc4 {[%emt 0:03:32]} Be8 {[%emt 0:00:58]} 16. Qc3 {[%emt 0:00:50]} Bf8 {[%emt 0:00:46]} 17. Rfc1 {[%emt 0:00:16]} Rab8 {[%emt 0:02:25]} 18. Qf3 {[%emt 0:05:50]} Nd7 {[%emt 0:03:19]} 19. Qe3 {[%emt 0:04:10]} Rdc8 {[%emt 0:02:18]} 20. Ba3 {[%emt 0:05:26]} Nf6 {[%emt 0:06:19]} 21. Rab1 {[%emt 0:01:10]} Rd8 {[%emt 0:01:55]} 22. Nd6 {[%emt 0:01:23]} Bd7 {[%emt 0:01:07]} 23. Rc4 {[%emt 0:05:49]} Ne7 {[%emt 0:01:34]} 24. Qc1 {[%emt 0:00:51]} Bc6 {[%emt 0:00:43]} 25. e4 {[%emt 0:00:10]} Nd7 {[%emt 0:08:42]} 26. Qf4 {[%emt 0:01:05]} Nf6 {[%emt 0:00:49]} 27. Bb4 {[%emt 0:00:27]} Ng6 {[%emt 0:00:34]} 28. Qc1 {[%emt 0:00:32]} Ne5 {[%emt 0:02:42]} 29. Ba5 {[%emt 0:02:10]} b6 {[%emt 0:01:09]} 30. Bxb6 {[%emt 0:00:07]} Rxb6 {[%emt 0:00:06]} 31. cxb6 {[%emt 0:00:04]} Qxd6 {[%emt 0:00:15]} 32. Rd4 {[%emt 0:00:02]} Qb8 {[%emt 0:00:45]} 33. Rxd8 {[%emt 0:00:28]} Qxd8 {[%emt 0:00:06]} 34. Na5 {[%emt 0:03:01]} Bxe4 {[%emt 0:02:48]} 35. Bxe4 {[%emt 0:00:00]} Nxe4 {[%emt 0:00:05]} 36. b7 {[%emt 0:00:00]} Qd5 {[%emt 0:02:29]} 37. b8=Q {[%emt 0:00:37]} Nf3+ {[%emt 0:00:22]} 38. Kg2 {[%emt 0:00:02]} Neg5 {[%emt 0:06:15]} 39. Qxf8+ {[%emt 0:00:38]} Kxf8 {[%emt 0:00:05]} 40. Qc8+ {[%emt 0:00:05]} Ke7 {[%emt 0:00:11]} 41. Qb7+ {[%emt 0:00:02]} 1-0

[Event "Bruges Masters 2019"]
[Site "Bruges"]
[Date "2019.08.15"]
[Round "9.8"]
[White "Dauw, Sterre"]
[Black "Bekker, Stefan"]
[Result "0-1"]
[ECO "A16"]
[WhiteElo "2148"]
[BlackElo "2272"]
[Annotator "ChessBase"]
[PlyCount "104"]
[EventDate "2019.08.11"]
[EventType "swiss"]
[EventCountry "BEL"]
[SourceTitle "playchess.com"]
[Source "ChessBase"]
[SourceQuality "1"]
[TimeControl "5400+30"]

1. e3 {[%emt 0:15:15]} Nf6 {[%emt 0:03:35]} 2. c4 {[%emt 0:02:04]} g6 {[%emt 0:00:15]} 3. Nc3 {[%emt 0:00:49]} Bg7 {[%emt 0:01:44]} 4. a3 {[%emt 0:01:05]} d6 {[%emt 0:01:13]} 5. b4 {[%emt 0:00:04]} a5 {[%emt 0:02:46]} 6. Bb2 {[%emt 0:00:06]} O-O {[%emt 0:00:51]} 7. Nf3 {[%emt 0:01:10]} axb4 {[%emt 0:02:20]} 8. axb4 {[%emt 0:00:06]} Rxa1 {[%emt 0:00:13]} 9. Qxa1 {[%emt 0:00:05]} Na6 {[%emt 0:00:02]} 10. b5 {[%emt 0:01:45]} Nc5 {[%emt 0:02:21]} 11. d4 {[%emt 0:01:17]} Nce4 {[%emt 0:01:25]} 12. Bd3 {[%emt 0:00:20]} Nxc3 {[%emt 0:00:12]} 13. Bxc3 {[%emt 0:00:06]} Bg4 {[%emt 0:00:58]} 14. Nd2 {[%emt 0:00:05]} e5 {[%emt 0:01:12]} 15. O-O {[%emt 0:00:24]} exd4 {[%emt 0:00:32]} 16. Bxd4 {[%emt 0:00:42]} Re8 {[%emt 0:01:46]} 17. h3 {[%emt 0:03:40]} Bd7 {[%emt 0:05:34]} 18. Ne4 {[%emt 0:01:30]} Re6 {[%emt 0:07:07]} 19. Ng5 {[%emt 0:00:40]} Re8 {[%emt 0:00:44]} 20. Ne4 {[%emt 0:00:29]} Nxe4 {[%emt 0:30:29]} 21. Bxg7 {[%emt 0:00:18]} f5 {[%emt 0:01:43]} 22. Bb2 {[%emt 0:05:45]} Qa8 {[%emt 0:02:14]} 23. Qd1 {[%emt 0:01:30]} Qa2 {[%emt 0:00:58]} 24. Qc2 {[%emt 0:01:07]} Qa5 {[%emt 0:04:36]} 25. Ra1 {[%emt 0:09:36]} Qb4 {[%emt 0:00:05]} 26. Kf1 {[%emt 0:09:55]} Nc5 {[%emt 0:00:36]} 27. Bc3 {[%emt 0:00:50]} Qb3 {[%emt 0:00:17]} 28. Qxb3 {[%emt 0:00:28]} Nxb3 {[%emt 0:00:12]} 29. Ra7 {[%emt 0:00:05]} Nc5 {[%emt 0:00:43]} 30. Be2 {[%emt 0:03:47]} Be6 {[%emt 0:02:28]} 31. Ba5 {[%emt 0:01:28]} b6 {[%emt 0:00:23]} 32. Bc3 {[%emt 0:01:06]} Rc8 {[%emt 0:00:05]} 33. f3 {[%emt 0:02:24]} Nd7 {[%emt 0:00:55]} 34. Kf2 {[%emt 0:06:20]} Ne5 {[%emt 0:01:08]} 35. Bxe5 {[%emt 0:00:25]} dxe5 {[%emt 0:00:06]} 36. f4 {[%emt 0:00:08]} e4 {[%emt 0:00:04]} 37. Ke1 {[%emt 0:04:56]} Kf8 {[%emt 0:00:21]} 38. Kd2 {[%emt 0:01:24]} Ke7 {[%emt 0:00:10]} 39. c5 {[%emt 0:00:31]} bxc5 {[%emt 0:00:07]} 40. b6 {[%emt 0:00:07]} Kd6 {[%emt 0:00:04]} 41. Ba6 {[%emt 0:00:12]} Rb8 {[%emt 0:03:03]} 42. bxc7 {[%emt 0:00:44]} Rh8 {[%emt 0:00:49]} 43. Kc3 {[%emt 0:00:07]} Kc6 {[%emt 0:00:27]} 44. c8=Q+ {[%emt 0:01:27]} Bxc8 {[%emt 0:00:07]} 45. Ra8 {[%emt 0:01:56]} Kc7 {[%emt 0:09:30]} 46. Rxc8+ {[%emt 0:01:14]} Rxc8 {[%emt 0:00:05]} 47. Bxc8 {[%emt 0:00:06]} Kxc8 {[%emt 0:00:04]} 48. Kc4 {[%emt 0:00:05]} Kb7 {[%emt 0:08:11]} 49. Kxc5 {[%emt 0:00:31]} Ka6 {[%emt 0:00:03]} 50. g4 {[%emt 0:01:03]} h6 {[%emt 0:01:45]} 51. g5 {[%emt 0:09:10]} hxg5 {[%emt 0:00:22]} 52. fxg5 {[%emt 0:00:10]} f4 {[%emt 0:00:20]} 0-1

[Event "Bruges Masters 2019"]
[Site "Bruges"]
[Date "2019.08.15"]
[Round "9.9"]
[White "Goossens, Hanne"]
[Black "Offringa, Joost"]
[Result "1/2-1/2"]
[ECO "B07"]
[WhiteElo "2134"]
[BlackElo "2291"]
[Annotator "ChessBase"]
[PlyCount "22"]
[EventDate "2019.08.11"]
[EventType "swiss"]
[EventCountry "BEL"]
[SourceTitle "playchess.com"]
[Source "ChessBase"]
[SourceQuality "1"]
[TimeControl "5400+30"]

1. e4 {[%emt 0:00:00]} d6 {[%emt 0:00:10]} 2. d4 {[%emt 0:00:00]} Nf6 {[%emt 0:00:03]} 3. Nc3 {[%emt 0:00:00]} g6 {[%emt 0:00:03]} 4. Bg5 {[%emt 0:00:19]} c6 {[%emt 0:00:08]} 5. Qd2 {[%emt 0:01:48]} b5 {[%emt 0:02:53]} 6. Bd3 {[%emt 0:02:21]} b4 {[%emt 0:03:52]} 7. Nce2 {[%emt 0:00:29]} Qb6 {[%emt 0:02:08]} 8. f4 {[%emt 0:01:53]} Bg7 {[%emt 0:00:24]} 9. Nf3 {[%emt 0:01:56]} Bg4 {[%emt 0:06:08]} 10. O-O {[%emt 0:02:36]} O-O {[%emt 0:07:24]} 11. Kh1 {[%emt 0:06:56]} Nbd7 {[%emt 0:03:17]} 1/2-1/2